bitfinex/quotes_ETHUSD_20250908
["timestamp","ask_amount","ask_price","bid_price","bid_amount"]
[1757325158623,0.0002,4319.7,4319.6,18.66389666]
[1757325159424,0.0002,4319.7,4319.6,14.28529666]
[1757325159624,0.3038,4319.7,4319.6,17.88639666]
[1757325159822,0.3038,4319.7,4319.6,17.43239666]
[1757325160300,0.0002,4319.7,4319.6,17.43239666]
[1757325161219,0.0002,4319.7,4319.6,17.74029666]
[1757325161598,0.0002,4319.7,4319.6,18.66089666]
[1757325162422,0.0002,4319.7,4319.6,17.74029666]
[1757325162621,0.3038,4319.7,4319.6,13.52339666]
[1757325162826,0.0002,4319.7,4319.6,17.43039666]
[1757325163329,0.0002,4319.7,4319.6,17.73829666]
[1757325164724,0.0002,4319.7,4319.6,18.65889666]
[1757325168140,0.0002,4319.7,4319.6,18.75157689]
[1757325169744,0.0244,4319.8,4319.7,3.10697557]
[1757325169945,0.0244,4319.8,4319.7,4.02757557]
[1757325170136,0.0244,4319.8,4319.7,4.33547557]
[1757325171328,0.0244,4319.8,4319.7,3.41487557]
[1757325172647,0.0244,4319.8,4319.7,3.88147557]
[1757325172848,0.0244,4319.8,4319.7,3.9741558]
[1757325173047,0.0244,4319.8,4319.7,4.4281558]
[1757325173755,0.7613,4319.8,4319.7,3.1996558]
[1757325174054,0.3266,4319.8,4319.7,3.1996558]
[1757325174355,0.3266,4319.8,4319.7,9.37590962]
[1757325174550,0.0244,4319.8,4319.7,9.66300962]
[1757325174753,0.0244,4319.8,4319.7,9.37590962]
[1757325175154,0.3266,4319.8,4319.7,9.37590962]
[1757325175618,0.0244,4319.8,4319.7,9.37590962]
[1757325175814,0.0244,4319.8,4319.7,9.66300962]
[1757325176556,0.0244,4319.8,4319.7,9.37590962]
[1757325176856,0.0244,4319.8,4319.7,13.27390962]
[1757325177663,0.3266,4319.8,4319.7,13.27390962]
[1757325178152,0.0244,4319.8,4319.7,13.27390962]
[1757325178463,0.0244,4319.8,4319.7,13.56100962]
[1757325179035,0.0244,4319.8,4319.7,13.99250962]
[1757325179550,0.0244,4319.8,4319.7,14.46120962]
[1757325179858,0.0244,4319.8,4319.7,13.56100962]
[1757325180475,0.3266,4319.8,4319.7,9.37590962]
[1757325180676,1.2193,4319.8,4319.7,2.4076558]
[1757325180876,1.34337,4319.8,4319.7,3.98768023]
[1757325181232,1.2193,4319.8,4319.7,4.77968023]
[1757325182661,1.2193,4319.8,4319.7,0.09268023]
[1757325182866,1.2193,4319.8,4319.7,3.98768023]
[1757325183431,1.2203,4319.8,4319.7,3.98768023]
[1757325184138,1.2203,4319.8,4319.7,6.3026558]
[1757325184347,0.7856,4319.8,4319.7,7.0946558]
[1757325184534,0.3276,4319.8,4319.7,7.0946558]
[1757325184868,0.0254,4319.8,4319.7,13.55800962]
[1757325185032,0.0254,4319.8,4319.7,13.27090962]
[1757325185792,0.3276,4319.8,4319.7,13.27090962]
[1757325186232,0.0254,4319.8,4319.7,13.27090962]
[1757325186435,0.0254,4319.8,4319.7,13.98950962]
[1757325186638,0.0254,4319.8,4319.7,13.27090962]
[1757325186859,0.3276,4319.8,4319.7,7.0946558]
[1757325187389,1.2203,4319.8,4319.7,7.0946558]
[1757325188344,1.2203,4319.8,4319.7,4.77968023]
[1757325188542,1.34447,4319.8,4319.7,0.09268023]
[1757325188780,1.34447,4319.8,4319.7,3.98768023]
[1757325188949,1.2203,4319.8,4319.7,3.98768023]
[1757325189280,1.2203,4319.8,4319.7,6.3026558]
[1757325194196,0.0254,4319.8,4319.7,7.3817558]
[1757325194487,0.0254,4319.8,4319.7,7.0946558]
[1757325194661,0.0254,4319.8,4319.7,7.4969558]
[1757325194869,0.0246,4319.8,4319.7,7.4969558]
[1757325195385,0.0246,4319.8,4319.7,16.35240962]
[1757325195788,0.0246,4319.8,4319.7,15.88370962]
[1757325195959,0.0246,4319.8,4319.7,15.45220962]
[1757325196583,0.0246,4319.8,4319.7,9.7074558]
[1757325196775,0.0246,4319.8,4319.7,15.88370962]
[1757325197087,0.0246,4319.8,4319.7,16.35240962]
[1757325197989,0.0246,4319.8,4319.7,15.88370962]
[1757325198561,0.0246,4319.8,4319.7,19.35240962]
[1757325200584,1e-08,4319.8,4319.7,19.35240962]
[1757325204432,0.31430001,4319.8,4319.7,11.9888558]
[1757325205218,1.22820001,4319.8,4319.7,8.0938558]
[1757325205420,1.22820001,4319.8,4319.7,11.9888558]
[1757325207083,1e-08,4319.8,4319.7,12.2933558]
[1757325207579,1e-08,4319.8,4319.7,11.9888558]
[1757325207985,0.31430001,4319.8,4319.7,11.9888558]
[1757325208211,1e-08,4319.8,4319.7,11.9888558]
[1757325209428,0.31430001,4319.8,4319.7,11.9888558]
[1757325209722,0.31430001,4319.8,4319.7,18.16510962]
[1757325210623,1.22820001,4319.8,4319.7,18.16510962]
[1757325210822,1.22820001,4319.8,4319.7,6.67288023]
[1757325211205,1.22820001,4319.8,4319.7,2.77888023]
[1757325211530,1.22820001,4319.8,4319.7,9.67288023]
[1757325211825,1.22820001,4319.8,4319.7,11.9878558]
[1757325213001,0.31430001,4319.8,4319.7,11.9878558]
[1757325214302,0.74710001,4319.8,4319.7,11.9878558]
[1757325214636,1e-08,4319.8,4319.7,11.9878558]
[1757325214841,0.31430001,4319.8,4319.7,11.9878558]
[1757325216228,1e-08,4319.8,4319.7,11.9878558]
[1757325216434,1e-08,4319.8,4319.7,18.93130962]
[1757325216633,1e-08,4319.8,4319.7,18.46860962]
[1757325217211,1e-08,4319.8,4319.7,18.16410962]
[1757325217918,1e-08,4319.8,4319.7,18.46860962]
[1757325218427,1e-08,4319.8,4319.7,18.16410962]
[1757325218828,0.31430001,4319.8,4319.7,18.16410962]
[1757325219032,1e-08,4319.8,4319.7,18.16410962]
[1757325219226,1e-08,4319.8,4319.7,18.46860962]
[1757325220151,0.01920001,4319.9,4319.8,5.31492198]
[1757325221453,0.33350001,4319.9,4319.8,5.31492198]
[1757325223269,0.01920001,4319.9,4319.8,5.31492198]
[1757325224238,0.01920001,4319.9,4319.8,6.54902198]
[1757325224442,0.01920001,4319.9,4319.8,7.34102198]
[1757325224863,0.01920001,4319.9,4319.8,7.36602198]
[1757325227662,0.01920001,4319.9,4319.8,6.89912198]
[1757325231071,0.01920001,4319.9,4319.8,3.89912198]
[1757325232839,0.01920001,4319.9,4319.8,6.43642198]
[1757325234744,0.01920001,4319.9,4319.8,6.13192198]
[1757325235067,0.31350001,4319.9,4319.8,6.13192198]
[1757325235591,1.24450001,4319.9,4319.8,3.817]
[1757325235806,1.24450001,4319.9,4319.8,7.711]
[1757325235939,1.24450001,4319.9,4319.8,10.02592198]
[1757325236942,1.24450001,4319.9,4319.8,10.02792198]
[1757325237198,1.24550001,4319.9,4319.8,10.02792198]
[1757325237378,1.24550001,4319.9,4319.8,3.921]
[1757325237576,1.24550001,4319.9,4319.8,3.92]
[1757325241202,1.24550001,4319.9,4319.8,0.027]
[1757325241497,3.6851584,4319.9,4319.8,3.92]
[1757325241663,1.37029001,4319.9,4319.8,3.92]
[1757325242797,0.91079001,4319.9,4319.8,3.92]
[1757325242972,1.24550001,4319.9,4319.8,4.0352]
[1757325243178,1.24550001,4319.9,4319.8,3.92]
[1757325244406,0.78600001,4319.9,4319.8,3.92]
[1757325244701,1.24550001,4319.9,4319.8,3.92]
[1757325245403,1.24470001,4319.9,4319.8,3.92]
[1757325248201,0.31370001,4319.9,4319.8,3.92]
[1757325248817,0.01940001,4319.9,4319.8,6.55897119]
[1757325249025,0.01940001,4319.9,4319.8,8.38802198]
[1757325251475,0.01940001,4319.9,4319.8,11.38802198]
[1757325257018,0.01940001,4319.9,4319.8,10.44302198]
[1757325257381,0.01940001,4319.9,4319.8,10.91212198]
[1757325258322,0.01940001,4319.9,4319.8,10.44302198]
[1757325258922,0.01940001,4319.9,4319.8,10.91212198]
[1757325259989,0.01940001,4319.9,4319.8,10.44302198]
[1757325261815,0.01940001,4319.9,4319.8,10.91212198]
[1757325262334,0.01940001,4319.9,4319.8,11.38802198]
[1757325271024,0.01860001,4319.9,4319.8,11.38802198]
[1757325277203,0.01860001,4319.9,4319.8,10.91212198]
[1757325278115,0.01860001,4319.9,4319.8,11.40102198]
[1757325279329,0.01860001,4319.9,4319.8,10.91212198]
[1757325279840,0.01860001,4319.9,4319.8,11.40102198]
[1757325283733,0.01860001,4319.9,4319.8,11.40102198]
[1757325283931,1e-08,4319.9,4319.8,11.40102198]
[1757325286344,1e-08,4319.9,4319.8,16.95902198]
[1757325287062,1e-08,4319.9,4319.8,15.99702198]
[1757325294049,0.29890001,4319.9,4319.8,15.69612198]
[1757325294247,1e-08,4319.9,4319.8,16.00712198]
[1757325294452,1e-08,4319.9,4319.8,22.18299683]
[1757325294851,0.76710001,4319.9,4319.8,5.7002]
[1757325295023,1.22790001,4319.9,4319.8,6.22992198]
[1757325295228,1.22790001,4319.9,4319.8,7.02192198]
[1757325296312,1.22790001,4319.9,4319.8,2.34192198]
[1757325296313,1.35013001,4319.9,4319.8,2.34192198]
[1757325296512,1.35013001,4319.9,4319.8,3.915]
[1757325296747,1.35013001,4319.9,4319.8,0.027]
[1757325297057,9.84087325,4319.9,4319.8,0.027]
[1757325297548,10.01299599,4319.9,4319.8,0.027]
[1757325298644,10.01299599,4319.9,4319.6,0.002]
[1757325298645,2.31492198,4319.8,4319.6,0.002]
[1757325298850,11.70732401,4319.7,4319.6,0.002]
[1757325299024,13.43399459,4319.7,4319.6,0.002]
[1757325299427,12.93522401,4319.7,4319.6,0.002]
[1757325302248,12.71875042,4319.7,4319.6,0.002]
[1757325302421,14.98665839,4319.7,4319.6,0.002]
[1757325308521,18.87665839,4319.7,4319.6,0.002]
[1757325309444,14.98665839,4319.7,4319.6,0.002]
[1757325309848,8.81078354,4319.7,4319.6,0.002]
[1757325310050,12.70078354,4319.7,4319.6,0.002]
[1757325310246,9.70078354,4319.7,4319.6,0.002]
[1757325311440,12.70078354,4319.7,4319.6,0.002]
[1757325312161,11.94108354,4319.7,4319.6,0.002]
[1757325315363,8.05108354,4319.7,4319.6,0.002]
[1757325315729,11.47288354,4319.7,4319.6,0.002]
[1757325318083,11.94108354,4319.7,4319.6,0.002]
[1757325318765,11.47288354,4319.7,4319.6,0.002]
[1757325321368,7.58288354,4319.7,4319.6,0.002]
[1757325321539,11.47288354,4319.7,4319.6,0.002]
[1757325321939,11.47208354,4319.7,4319.6,0.002]
[1757325322135,6.15790797,4319.7,4319.6,0.481]
[1757325322361,1.779,4319.8,4319.6,0.481]
[1757325322362,0.001,4319.8,4319.6,0.481]
[1757325322548,0.001,4319.8,4319.7,0.479]
[1757325322848,6.20592198,4319.8,4319.7,0.479]
[1757325323167,3.891,4319.8,4319.7,0.479]
[1757325323735,2.31497557,4319.7,4319.6,0.09672921]
[1757325323979,2.31497557,4319.7,4319.6,0.002]
[1757325323980,8.95535042,4319.7,4319.6,0.002]
[1757325324334,8.49085042,4319.7,4319.6,0.002]
[1757325324535,6.17587485,4319.7,4319.6,0.002]
[1757325324733,2.31497557,4319.7,4319.6,0.002]
[1757325324932,2.95535226,4319.7,4319.6,0.002]
[1757325330392,9.59572711,4319.7,4319.6,0.002]
[1757325333381,2.95535226,4319.7,4319.6,0.002]
[1757325333580,6.84435226,4319.7,4319.6,0.002]
[1757325335771,6.84435226,4319.7,4319.6,0.4667]
[1757325336984,2.95535226,4319.7,4319.6,0.002]
[1757325337167,6.84435226,4319.7,4319.6,0.002]
[1757325337363,2.95535226,4319.7,4319.6,0.002]
[1757325337588,6.84435226,4319.7,4319.6,0.002]
[1757325340590,6.20397557,4319.7,4319.6,0.4667]
[1757325341489,2.31497557,4319.7,4319.6,0.4667]
[1757325341693,6.20397557,4319.7,4319.6,0.002]
[1757325342496,3.889,4319.7,4319.6,0.002]
[1757325342899,3.89,4319.7,4319.6,0.002]
[1757325346171,0.001,4319.7,4319.6,0.4667]
[1757325346388,3.89,4319.7,4319.6,0.4667]
[1757325346974,0.001,4319.7,4319.6,0.4667]
[1757325347187,3.8892,4319.7,4319.6,0.4667]
[1757325347674,0.0002,4319.7,4319.6,0.4667]
[1757325347874,3.8882,4319.7,4319.6,0.4667]
[1757325348071,2.31517557,4319.7,4319.6,0.4667]
[1757325348500,6.20317557,4319.7,4319.6,0.4667]
[1757325348685,0.0002,4319.7,4319.6,0.4667]
[1757325349007,3.8882,4319.7,4319.6,0.4667]
[1757325349916,6.20317557,4319.7,4319.6,0.4667]
[1757325350338,3.8882,4319.7,4319.6,0.4667]
[1757325350915,0.0002,4319.7,4319.6,0.4667]
[1757325351085,3.8882,4319.7,4319.6,0.4667]
[1757325356724,6.20317557,4319.7,4319.6,0.4667]
[1757325357019,3.8882,4319.7,4319.6,0.4667]
[1757325359200,6.20317557,4319.7,4319.6,0.4667]
[1757325359593,6.20317557,4319.7,4319.6,0.002]
[1757325361931,6.20317557,4319.7,4319.6,0.002]
[1757325363834,6.20217557,4319.7,4319.6,0.002]
[1757325364537,2.31517557,4319.7,4319.6,0.002]
[1757325364700,6.20217557,4319.7,4319.6,0.002]
[1757325367021,6.20217557,4319.7,4319.6,0.4639]
[1757325367022,3.8872,4319.7,4319.6,0.4639]
[1757325368337,6.20217557,4319.7,4319.6,0.4639]
[1757325368650,6.20217557,4319.7,4319.6,0.002]
[1757325369855,3.8872,4319.7,4319.6,0.002]
[1757325370159,6.20217557,4319.7,4319.6,0.002]
[1757325370831,2.31517557,4319.7,4319.6,0.002]
[1757325371023,6.20217557,4319.7,4319.6,0.002]
[1757325372730,6.20137557,4319.7,4319.6,0.002]
[1757325374427,3.8864,4319.7,4319.6,0.002]
[1757325374735,0.001,4319.8,4319.6,0.3019]
[1757325374942,3.886,4319.7,4319.6,0.7685]
[1757325375124,3.886,4319.7,4319.6,1.2604]
[1757325375328,3.886,4319.7,4319.6,0.7938]
[1757325375536,3.886,4319.7,4319.6,0.3319]
[1757325376466,3.886,4319.7,4319.6,1.2604]
[1757325376967,0.001,4319.8,4319.6,0.7938]
[1757325377164,3.887,4319.8,4319.6,0.3319]
[1757325377462,0.001,4319.8,4319.7,0.9285]
[1757325377630,0.001,4319.8,4319.7,1.3436]
[1757325378727,0.001,4319.8,4319.7,3.68172532]
[1757325379235,0.001,4319.8,4319.7,3.71172532]
[1757325379840,0.001,4319.8,4319.7,4.48057557]
[1757325383477,0.001,4319.8,4319.7,4.57326805]
[1757325385644,0.001,4319.8,4319.7,2.25829248]
[1757325386083,0.001,4319.8,4319.7,4.57326805]
[1757325389875,0.001,4319.8,4319.7,1.33869248]
[1757325390393,0.001,4319.8,4319.7,3.65366805]
[1757325391399,0.001,4319.8,4319.7,4.58396805]
[1757325391700,0.001,4319.8,4319.7,4.08906805]
[1757325393499,0.001,4319.8,4319.7,4.58396805]
[1757325396675,0.001,4319.8,4319.7,8.46796805]
[1757325398110,0.0002,4319.8,4319.7,8.46796805]
[1757325398806,1.2326,4319.8,4319.7,4.00669248]
[1757325399004,1.356,4319.8,4319.7,3.914]
[1757325399222,1.356,4319.8,4319.7,0.03]
[1757325399901,1.2326,4319.8,4319.7,0.03]
[1757325401681,0.3167,4319.8,4319.7,3.914]
[1757325403873,0.7815,4319.8,4319.7,3.914]
[1757325404076,1.2326,4319.8,4319.7,3.914]
[1757325406376,1.2326,4319.8,4319.7,0.03]
[1757325406610,1.356,4319.8,4319.7,0.03]
[1757325409597,3.67092198,4319.8,4319.7,0.03]
[1757325409989,1.356,4319.8,4319.7,0.03]
[1757325411488,10.9715627,4319.8,4319.7,0.03]
[1757325412786,3.67092198,4319.8,4319.7,0.03]
[1757325413217,7.55392198,4319.8,4319.7,0.03]
[1757325414422,14.8545627,4319.8,4319.7,0.03]
[1757325414622,15.07131374,4319.8,4319.7,0.03]
[1757325415322,14.8545627,4319.8,4319.7,0.03]
[1757325418111,15.07120548,4319.8,4319.7,0.03]
[1757325418319,13.95476522,4319.8,4319.7,0.03]
[1757325418652,14.54749443,4319.8,4319.7,0.03]
[1757325419910,8.36329397,4319.8,4319.7,0.03]
[1757325423495,8.36249397,4319.8,4319.7,0.03]
[1757325425318,4.65576811,4319.8,4319.7,0.03]
[1757325425620,8.53876811,4319.8,4319.7,0.03]
[1757325426246,4.65576811,4319.8,4319.7,0.03]
[1757325426432,8.36249397,4319.8,4319.7,0.03]
[1757325429154,8.36349397,4319.8,4319.7,0.03]
[1757325429651,4.48049397,4319.8,4319.7,0.03]
[1757325429857,8.36349397,4319.8,4319.7,0.03]
[1757325430153,4.48049397,4319.8,4319.7,0.03]
[1757325430332,8.36349397,4319.8,4319.7,0.03]
[1757325433460,7.44759397,4319.8,4319.7,0.03]
[1757325433623,7.89319397,4319.8,4319.7,0.03]
[1757325434056,8.36099397,4319.8,4319.7,0.03]
[1757325434426,3.56459397,4319.8,4319.7,0.03]
[1757325434628,7.44759397,4319.8,4319.7,0.03]
[1757325435055,8.36099397,4319.8,4319.7,0.03]
[1757325436205,8.86016356,4319.8,4319.7,0.03]
[1757325438331,8.99021764,4319.8,4319.7,0.03]
[1757325439063,2.43017557,4319.7,4319.6,0.002]
[1757325439241,11.59809637,4319.7,4319.6,0.002]
[1757325439439,12.94908024,4319.7,4319.6,0.002]
[1757325439857,15.94908024,4319.7,4319.6,0.002]
[1757325440075,15.94908024,4319.7,4318.7,0.002]
[1757325440076,2.3155657,4318.6,4318.0,0.002]
[1757325440367,8.49998018,4318.2,4318.0,0.002]
[1757325440569,12.90612296,4318.2,4318.0,0.002]
[1757325442182,13.60288018,4318.2,4318.0,0.002]
[1757325442951,13.81945472,4318.2,4318.0,0.002]
[1757325443149,13.60288018,4318.2,4318.0,0.002]
[1757325443382,15.6122797,4318.2,4318.0,0.002]
[1757325446190,14.92799431,4318.2,4318.0,0.002]
[1757325446970,14.48239431,4318.2,4318.0,0.002]
[1757325447362,14.17489431,4318.2,4318.1,0.3102]
[1757325447578,7.99069385,4318.2,4318.1,0.8073]
[1757325447778,7.99069385,4318.2,4318.1,0.3102]
[1757325448594,7.99069385,4318.2,4318.1,0.766]
[1757325448992,7.98989385,4318.2,4318.1,0.766]
[1757325449297,7.98989385,4318.2,4318.1,0.3102]
[1757325449498,7.98989385,4318.2,4318.1,0.022]
[1757325449997,7.98989385,4318.2,4318.1,0.3102]
[1757325452285,4.10789385,4318.2,4318.1,0.3102]
[1757325452497,7.98989385,4318.2,4318.1,1.2631]
[1757325453200,7.98989385,4318.2,4318.1,0.766]
[1757325454487,7.98989385,4318.2,4318.1,0.3102]
[1757325457283,4.10789385,4318.2,4318.1,0.8073]
[1757325457504,6.19697972,4318.2,4318.1,1.2631]
[1757325457986,6.19697972,4318.2,4318.1,0.766]
[1757325458789,6.19697972,4318.2,4318.1,0.3102]
[1757325460114,6.19697972,4318.2,4318.1,0.766]
[1757325460314,6.19697972,4318.2,4318.1,0.022]
[1757325460516,7.86772385,4318.2,4318.1,0.022]
[1757325460715,8.18272385,4318.2,4318.1,0.022]
[1757325460917,8.67402385,4318.2,4318.1,0.022]
[1757325461118,8.67402385,4318.2,4318.1,1e-08]
[1757325461119,18.53558276,4318.2,4318.1,1e-08]
[1757325461495,12.84973564,4318.2,4318.1,1e-08]
[1757325461695,3.792,4317.9,4317.8,1e-08]
[1757325461887,18.37834032,4317.9,4317.8,1e-08]
[1757325462082,19.64574032,4317.9,4317.8,1e-08]
[1757325462745,18.85374032,4317.9,4317.8,1e-08]
[1757325462947,19.44371392,4317.9,4317.8,1e-08]
[1757325463630,15.56171392,4317.9,4317.8,1e-08]
[1757325463829,18.49131392,4317.9,4317.8,1e-08]
[1757325464358,8.11011346,4317.9,4317.8,1.24110001]
[1757325464525,11.99211346,4317.9,4317.8,0.74600001]
[1757325464724,11.99211346,4317.9,4317.8,0.29020001]
[1757325464911,11.99229274,4317.9,4317.8,0.29020001]
[1757325465754,8.99229274,4317.9,4317.8,1.24310001]
[1757325465958,7.00435194,4317.9,4317.8,1.24310001]
[1757325467601,7.00435194,4317.9,4317.8,0.78730001]
[1757325467806,7.00435194,4317.9,4317.8,1.24310001]
[1757325468242,7.31935194,4317.9,4317.8,0.00200001]
[1757325468426,8.45005024,4317.9,4317.8,0.00200001]
[1757325469340,9.08059587,4317.9,4317.8,0.00200001]
[1757325469637,8.76559587,4317.9,4317.8,0.00200001]
[1757325470852,9.08059587,4317.9,4317.8,0.00200001]
[1757325471424,8.76559587,4317.9,4317.8,0.29020001]
[1757325472144,8.76631626,4317.9,4317.8,0.29020001]
[1757325474023,8.76631626,4317.9,4317.8,0.75470001]
[1757325474228,8.63604351,4317.9,4317.8,1.19870001]
[1757325474429,8.63524351,4317.9,4317.8,1.19870001]
[1757325474629,4.75324351,4317.9,4317.8,1.19870001]
[1757325474830,8.63524351,4317.9,4317.8,1.19870001]
[1757325475520,7.50454521,4317.9,4317.8,1.19870001]
[1757325476151,7.00427233,4317.9,4317.8,1.19870001]
[1757325476346,3.12227233,4317.9,4317.8,1.19870001]
[1757325476561,7.00327233,4317.9,4317.8,1.19870001]
[1757325479841,3.12227233,4317.9,4317.8,1.19870001]
[1757325480042,6.78611421,4317.9,4317.8,1.19870001]
[1757325480865,7.28611421,4317.9,4317.8,1.19870001]
[1757325481070,1.0899736,4317.9,4317.8,1.43470001]
[1757325481233,4.9709736,4317.9,4317.8,1.43470001]
[1757325482166,1.0899736,4317.9,4317.8,1.43470001]
[1757325482343,4.9709736,4317.9,4317.8,1.43470001]
[1757325484774,1.0899736,4317.9,4317.8,3.86589426]
[1757325484979,0.001,4318.0,4317.8,3.86589426]
[1757325484980,0.001,4318.0,4317.9,2.31594061]
[1757325485348,0.001,4318.0,4317.9,3.53534061]
[1757325487851,0.001,4318.0,4317.9,1.2194]
[1757325489086,0.001,4318.0,4317.9,3.53534061]
[1757325490080,0.001,4318.0,4317.9,1.2194]
[1757325490273,0.001,4318.0,4317.9,3.53534061]
[1757325490971,5.96956978,4318.6,4317.9,3.53534061]
[1757325491171,5.96956978,4318.6,4318.0,0.9085]
[1757325491375,5.96956978,4318.6,4318.1,0.444]
[1757325491570,5.96956978,4318.6,4318.2,0.4645]
[1757325491774,5.96956978,4318.6,4318.5,0.3109]
[1757325492279,3.654,4318.6,4318.5,0.3109]
[1757325493052,2.31556522,4318.6,4318.5,0.3109]
[1757325495490,6.19652336,4318.7,4318.5,0.3109]
[1757325495796,0.001,4318.7,4318.6,9.62306792]
[1757325496092,0.001,4318.7,4318.6,10.84246792]
[1757325496450,0.001,4318.7,4318.6,1.2194]
[1757325499581,0.001,4318.7,4318.6,10.84246792]
[1757325500095,0.0002,4318.7,4318.6,10.84246792]
[1757325500998,0.0002,4318.7,4318.6,10.95766792]
[1757325501986,0.0002,4318.7,4318.6,10.95966792]
[1757325502382,0.0002,4318.7,4318.6,18.63466792]
[1757325504373,0.0002,4318.7,4318.6,10.86386522]
[1757325504576,0.0002,4318.7,4318.6,18.63736792]
[1757325507180,0.0002,4318.7,4318.6,18.73007672]
[1757325517311,0.001,4318.9,4318.8,2.31545799]
[1757325517481,0.001,4318.9,4318.8,10.97245799]
[1757325517679,0.001,4318.9,4318.8,12.20135799]
[1757325523788,0.001,4318.9,4318.8,11.26405799]
[1757325524516,0.001,4318.9,4318.8,11.73005799]
[1757325525020,0.001,4318.9,4318.8,13.10855799]
[1757325525220,0.001,4318.9,4318.8,12.64255799]
[1757325525522,0.001,4318.9,4318.8,13.10855799]
[1757325525523,0.0002,4318.9,4318.8,13.10855799]
[1757325528227,0.001,4319.1,4319.0,3.10735077]
[1757325528404,0.001,4319.1,4319.0,14.31600697]
[1757325528587,0.001,4319.1,4319.0,14.58445347]
[1757325528786,0.001,4319.1,4319.0,15.52175347]
[1757325529232,0.001,4319.1,4319.0,15.61444293]
[1757325530945,0.026,4319.8,4319.4,0.792]
[1757325531147,0.026,4319.8,4319.5,14.29258546]
[1757325531389,0.026,4319.8,4319.5,15.52148546]
[1757325531533,0.026,4319.8,4319.5,15.63668546]
[1757325532025,0.026,4319.8,4319.5,15.72936677]
[1757325533904,0.026,4319.8,4319.5,18.72936677]
[1757325534305,0.026,4319.8,4319.5,18.90459454]
[1757325537942,0.2927,4319.6,4319.5,17.67569454]
[1757325539721,0.001,4319.6,4319.5,17.98099454]
[1757325540042,0.001,4319.6,4319.5,18.44509454]
[1757325540545,0.001,4319.6,4319.5,16.84951257]
[1757325541951,0.0004,4320.0,4319.9,2.31486839]
[1757325542124,0.001,4320.1,4320.0,6.10681481]
[1757325542449,0.001,4320.1,4320.0,6.41211481]
[1757325543627,0.001,4320.1,4320.0,6.50478688]
[1757325548448,0.001,4320.2,4320.0,6.50478688]
[1757325548449,0.001,4320.2,4320.1,6.10676123]
[1757325548749,0.001,4320.2,4320.1,10.92076123]
[1757325548964,0.001,4320.2,4320.1,11.22606123]
[1757325549111,0.001,4320.2,4320.1,11.31873116]
[1757325549843,0.001,4320.4,4320.2,2.31470765]
[1757325550047,0.001,4320.4,4320.2,12.45087545]
[1757325550246,0.001,4320.4,4320.2,12.84822838]
[1757325550716,0.0002,4320.3,4320.2,12.46799702]
[1757325551050,0.001,4320.6,4320.2,12.46799702]
[1757325551051,0.3073,4320.9,4320.8,2.31438622]
[1757325551250,0.3073,4320.9,4320.8,10.96838622]
[1757325551467,0.599,4320.9,4320.8,10.96838622]
[1757325551653,1.051,4320.9,4320.8,10.96838622]
[1757325552622,0.7437,4320.9,4320.8,17.14440695]
[1757325552819,0.2917,4320.9,4320.8,17.14440695]
[1757325553421,0.2917,4320.9,4320.8,17.93640695]
[1757325554044,0.7437,4320.9,4320.8,17.93640695]
[1757325554557,1.2218,4320.9,4320.8,17.93640695]
[1757325555955,1.2228,4320.9,4320.8,17.93640695]
[1757325559369,0.7447,4320.9,4320.8,17.93640695]
[1757325560325,0.2927,4320.9,4320.8,17.93640695]
[1757325560934,0.001,4320.9,4320.8,18.35690695]
[1757325561334,0.001,4320.9,4320.8,18.05160695]
[1757325561650,0.2927,4320.9,4320.8,18.05160695]
[1757325562459,0.001,4320.9,4320.8,18.05160695]
[1757325562635,0.001,4320.9,4320.8,18.35690695]
[1757325565135,0.001,4320.9,4320.8,18.83900695]
[1757325565646,0.001,4320.9,4320.8,18.36820695]
[1757325565841,0.001,4320.9,4320.8,19.31760695]
[1757325566167,0.001,4320.9,4320.8,18.85030695]
[1757325566336,0.001,4320.9,4320.8,18.36820695]
[1757325566532,0.7267,4320.9,4320.8,18.05160695]
[1757325568871,0.001,4320.9,4320.8,18.36820695]
[1757325569338,0.001,4320.9,4320.8,18.05160695]
[1757325570047,0.001,4320.9,4320.8,18.36820695]
[1757325576255,0.0002,4320.9,4320.8,18.36820695]
[1757325578650,0.0002,4320.9,4320.8,12.19218622]
[1757325578877,0.0002,4320.9,4320.8,18.36820695]
[1757325582892,0.0002,4320.9,4320.8,18.05160695]
[1757325592570,0.0002,4320.9,4320.8,7.99958622]
[1757325592775,0.0002,4320.9,4320.8,18.05060695]
[1757325592975,0.0002,4320.9,4320.8,18.05260695]
[1757325593294,0.0002,4320.9,4320.8,7.09438622]
[1757325593476,0.0002,4320.9,4320.8,10.96938622]
[1757325593665,0.0002,4320.9,4320.8,11.76138622]
[1757325598621,0.001,4321.4,4321.3,2.31411843]
[1757325598822,0.001,4321.4,4321.3,16.15613916]
[1757325599318,0.001,4321.4,4321.3,7.09211843]
[1757325599479,0.001,4321.4,4321.3,10.96611843]
[1757325599674,0.001,4321.4,4321.3,11.75811843]
[1757325600622,0.001,4321.4,4321.3,17.93413916]
[1757325600787,0.001,4321.4,4321.3,11.75811843]
[1757325601192,0.001,4321.4,4321.3,17.93413916]
[1757325601510,0.001,4321.4,4321.3,11.75811843]
[1757325601708,0.0002,4321.4,4321.3,11.75811843]
[1757325602503,0.0002,4321.4,4321.3,20.71058899]
[1757325602985,0.0002,4321.4,4321.3,20.2882658]
[1757325603189,0.0002,4321.4,4321.3,19.9352658]
[1757325603513,0.0002,4321.4,4321.3,19.4535658]
[1757325603988,0.0002,4321.4,4321.3,19.9217658]
[1757325604188,0.0002,4321.4,4321.3,21.5837953]
[1757325604390,0.2965,4321.4,4321.3,20.8238953]
[1757325604705,0.2965,4321.4,4321.3,19.1618658]
[1757325605290,0.7639,4321.4,4321.3,19.1618658]
[1757325606389,1.2378,4321.4,4321.3,19.1618658]
[1757325608742,0.0002,4321.4,4321.3,19.1618658]
[1757325611020,0.0002,4321.4,4321.3,19.4535658]
[1757325611422,0.0002,4321.4,4321.3,20.4034658]